Cogmind - Beta 13 @@@ ROGUE MODE // 2024.07.05 @ 21:53:13 Player: ThatBishHoly Result: Destroyed by Y-45 Defender with Beam Rifle Performance ------------- Evolutions (1) 500 Regions Visited (3) 600 Robots Destroyed (8) 40 Value Destroyed (142) 142 Prototype IDs (0) 0 Alien Tech Used (0) 0 Bonus (0) 0 TOTAL SCORE: 1282 Bonus ------- None Cogmind --------- Core Integrity 0/400 Matter 300/300 Energy 100/100 System Corruption 0% Temperature Cool (9) Movement Core (200) Ox3 Location -9/Materials Parts ------- > --- POWER (1) -------- (None) > --- PROPULSION (4) --- (None) > --- UTILITY (2) ------ Medium Storage Unit Terrain Scan Processor > --- WEAPON (2) ------- (None) > --- INVENTORY (10) --- Mining Laser Peak State ------------ > --- POWER ------------ Ion Engine > --- PROPULSION ------- Aluminum Leg Aluminum Leg > --- UTILITY ---------- Medium Storage Unit Improved Terrain Scanner > --- WEAPON ----------- Small Laser Beam Cannon > --- INVENTORY -------- Mining Laser [Rating: 9] Favorites ----------- Power Ion Engine Engine Ion Engine Propulsion Aluminum Leg Treads Light Treads Leg Aluminum Leg Utility Medium Storage Unit Device Improved Terrain Scanner Storage Medium Storage Unit Processor Terrain Scan Processor Weapon Small Laser Energy Gun Small Laser Energy Cannon Beam Cannon Impact Weapon Flail Build | -11 -10 -10 -9 ------- Run | Yrd Mat Min Mat Slots Evolved 2 | . . . 2 Power . | . . . . Propulsion 2 | . . . 2 Utility . | . . . . Weapon . | . . . . Parts Attached 15 | 5 6 . 4 Power 2 | 1 1 . . Engine 2 | 1 1 . . Core . | . . . . Reactor . | . . . . Propulsion 6 | 2 2 . 2 Treads 2 | 2 . . . Leg 4 | . 2 . 2 Wheel . | . . . . Hover . | . . . . Flight . | . . . . Utility 3 | . 2 . 1 Device 1 | . 1 . . Storage 1 | . 1 . . Processor 1 | . . . 1 Hackware . | . . . . Protection . | . . . . Artifact . | . . . . Weapon 4 | 2 1 . 1 Energy Gun 2 | 2 . . . Energy Cannon 1 | . 1 . . Ballistic Gun . | . . . . Ballistic Cannon . | . . . . Launcher . | . . . . Special Weapon . | . . . . Impact Weapon 1 | . . . 1 Slashing Weapon . | . . . . Piercing Weapon . | . . . . Special Melee Weapon . | . . . . Unidentified Prototypes . | . . . . Parts Lost 9 | . . 4 5 Power 1 | . . 1 . Propulsion 4 | . . 1 3 Utility 1 | . . 1 . Weapon 3 | . . 1 2 Highest Loss Streak 4 | . . 4 4 To Critical Strikes . | . . . . Average Slot Usage (%) 80 | . 85 98 55 Engine 9 | . 14 14 . Treads 7 | . 18 . . Leg 18 | . 8 28 20 Device 5 | . 3 12 . Storage 12 | . 12 14 11 Processor 3 | . . . 11 Energy Gun 14 | . 24 14 . Energy Cannon 6 | . 3 14 3 Impact Weapon 2 | . . . 8 Naked Turns . | . . . . Heaviest Build 20 | 7 20 20 15 Greatest Support 40 | 40 40 20 30 Greatest Overweight (x) 5 | 1 5 1 3 Average Overweight (x) . | . . . . Largest Inventory Capacity 10 | 5 10 10 10 Average Capacity 9 | 5 9 10 10 Most Carried 4 | 3 4 4 3 Average Carried 1 | . 2 3 1 Final Capacity 10 | 5 10 10 10 Final Carried 4 | 2 3 4 1 Class Distribution -------------------- 100% | Mutant Dominant Class ---------------- Mutant | -10/Materials Mutant | -10/Mines Mutant | -9/Materials Resources | -11 -10 -10 -9 ----------- Run | Yrd Mat Min Mat Matter Collected 329 | 250 20 29 30 Remotely . | . . . . Salvage Created 333 | 128 93 . 112 Parts 16 | 8 4 . 4 Haulers Intercepted 1 | . . . 1 Recyclers Shooed . | . . . . Parts Field Recycled . | . . . . Retrieved Matter . | . . . . Parts Self-Destructed . | . . . . Prevented . | . . . . Kills | -11 -10 -10 -9 ------- Run | Yrd Mat Min Mat Combat Hostiles Destroyed 3 | . 2 . 1 Melee 1 | . . . 1 Guns 2 | . 2 . . Classes Destroyed 5 | 2 1 . 2 Builder 1 | . . . 1 Tunneler 2 | 2 . . . Hauler 1 | . . . 1 Recycler 1 | 1 . . . Grunt 3 | . 2 . 1 Best Kill Streak 3 | 3 2 . 2 Combat Bots Only 2 | . 2 . 1 Max Kills in Single Turn 1 | 1 1 . 1 Gunslinging . | . . . . Exploded . | . . . . Melee 1 | . . . 1 Uniques/NPCs Destroyed . | . . . . Combat | -11 -10 -10 -9 -------- Run | Yrd Mat Min Mat Hostile Shots Fired 157 | . 27 23 107 Missed 47 | . 6 7 34 Damage Taken 1750 | . 259 547 944 Core 579 | . 38 137 404 Absorbed by Shields . | . . . . Core Remaining (%) 65 | 100 . 30 . Volleys Fired 27 | 6 13 3 5 Largest 2 | 2 2 2 1 Hottest 100 | 80 80 100 60 Shots Fired 45 | 12 22 6 5 Gun 37 | 12 22 3 . Cannon 8 | . . 3 5 Launcher . | . . . . Special . | . . . . Kinetic . | . . . . Thermal 45 | 12 22 6 5 Explosive . | . . . . Electromagnetic . | . . . . Robot Hit Streak 6 | 6 4 1 . Robot Miss Streak 5 | 2 2 2 5 Penetration Max . | . . . . Secondary Targets 1 | . 1 . . Max Gunslinging Chain 1 | . 1 . . Shots Hit Robots 28 | 6 14 2 6 Core Hits 12 | 4 5 1 2 Critical Kills . | . . . . Critical Parts Destroyed 1 | . . . 1 Critical Strikes 1 | . . . 1 Smash 1 | . . . 1 Melee Attacks 12 | . . . 12 Impact 12 | . . . 12 Slashing . | . . . . Piercing . | . . . . Sneak Attacks 1 | . . . 1 Combat Hostiles . | . . . . Follow-up Attacks . | . . . . Damage Inflicted 498 | 79 158 30 231 Guns 241 | 79 150 12 . Cannons 18 | . . 18 . Explosions . | . . . . Melee 231 | . . . 231 Ramming 8 | . 8 . . Kinetic . | . . . . Thermal 259 | 79 150 30 . Explosive . | . . . . Electromagnetic . | . . . . Impact 231 | . . . 231 Slashing . | . . . . Piercing . | . . . . Highest Corruption . | . . . . Average Corruption . | . . . . Corruption Purged . | . . . . Corruption Blocked . | . . . . Overload Shots . | . . . . Overflow Damage 87 | . . . 87 Projectiles . | . . . . Explosions . | . . . . Melee 87 | . . . 87 Knockbacks 3 | . . . 3 Impact 2 | . . . 2 Kinetic . | . . . . Secondary 1 | . . . 1 Self-Inflicted Damage . | . . . . Shots . | . . . . Rammed . | . . . . Targets Rammed 2 | . 2 . . Kicked 2 | . 2 . . Crushed . | . . . . Highest Temperature 324 | 72 324 99 30 Average Temperature 114 | 32 196 54 12 Received Heat Transfer 732 | . 180 . 552 Effects 1 | . 1 . . Interference 1 | . 1 . . Siege Activations . | . . . . Robots Corrupted . | . . . . Combat Hostiles . | . . . . Parts Fried 1 | . . . 1 Impact Corruptions 2 | . . . 2 Robots Melted . | . . . . Combat Hostiles . | . . . . Parts Melted . | . . . . Heat Transferred 587 | 175 350 62 . Parts Sabotaged . | . . . . Parts Stolen . | . . . . Parts Stripped . | . . . . Power Chain Reactions . | . . . . Alert | -11 -10 -10 -9 ------- Run | Yrd Mat Min Mat Peak Influence 74 | 15 74 28 30 Initial 28 | . 9 28 . Average 27 | 4 56 26 5 Maximum Alert Level . | . . . . Low Security (%) 100 | 100 100 100 100 Level 1 . | . . . . Level 2 . | . . . . Level 3 . | . . . . Level 4 . | . . . . Level 5 . | . . . . High Security . | . . . . Max Security . | . . . . Squads Dispatched 1 | . 1 . . Investigation 1 | . 1 . . Extermination . | . . . . Reinforcement . | . . . . Assault . | . . . . Garrison . | . . . . Intercept . | . . . . Searches Triggered . | . . . . Construction Impeded . | . . . . Haulers Reinforced . | . . . . Active Scanning Responses . | . . . . Cargo Convoy Interrupts . | . . . . Stealth | -11 -10 -10 -9 --------- Run | Yrd Mat Min Mat Distress Signals 2 | . . . 2 Communications Jammed . | . . . . Distress Signals . | . . . . Times Spotted 22 | . 3 10 9 Peak Tracking Total 9 | . 2 9 9 Tactical Retreats 1 | . . . 1 Traps | -11 -10 -10 -9 ------- Run | Yrd Mat Min Mat Traps Triggered 1 | . 1 . . Indirectly . | . . . . Trap Hack Attempts . | . . . . Triggered . | . . . . Disarmed . | . . . . Reprogrammed . | . . . . Reused . | . . . . Traps Extracted . | . . . . Installed . | . . . . Triggered . | . . . . Machines | -11 -10 -10 -9 ---------- Run | Yrd Mat Min Mat Machines Disabled . | . . . . Max in Single Turn . | . . . . Machines Repaired . | . . . . Machines Dismantled . | . . . . Machines Sabotaged . | . . . . Overloaded Fab Kills . | . . . . Hacking | -11 -10 -10 -9 --------- Run | Yrd Mat Min Mat Machines Accessed . | . . . . Terminals . | . . . . Fabricators . | . . . . Repair Stations . | . . . . Recycling Units . | . . . . Scanalyzers . | . . . . Garrison Access . | . . . . Total Hacks . | . . . . Successful . | . . . . Failed . | . . . . Catastrophic . | . . . . Database Lockouts . | . . . . Manual . | . . . . Terminals . | . . . . Fabricators . | . . . . Repair Stations . | . . . . Recycling Units . | . . . . Scanalyzers . | . . . . Garrison Access . | . . . . Terminal Hacks . | . . . . Fabricator Hacks . | . . . . Repair Station Hacks . | . . . . Recycling Unit Hacks . | . . . . Scanalyzer . | . . . . Garrison Access Hacks . | . . . . Unauthorized Hacks . | . . . . Terminals . | . . . . Fabricators . | . . . . Repair Stations . | . . . . Recycling Units . | . . . . Scanalyzers . | . . . . Garrison Access . | . . . . Data Cores Recovered . | . . . . Used . | . . . . Hacking Detections . | . . . . Full Trace Events . | . . . . Feedback Events . | . . . . Feedback Blocked . | . . . . Robot Schematics Acquired . | . . . . Robots Built . | . . . . Authchips . | . . . . Time . | . . . . Total Robot Build Rating . | . . . . Part Schematics Acquired . | . . . . Parts Built . | . . . . Authchips . | . . . . Time . | . . . . Total Part Build Rating . | . . . . Parts Repaired . | . . . . Time . | . . . . Parts Recycled . | . . . . Recycled Matter . | . . . . Retrieved Matter . | . . . . Retrieved Components . | . . . . Parts Scanalyzed . | . . . . Part Schematics Acquired . | . . . . Parts Damaged . | . . . . Bothacking | -11 -10 -10 -9 ------------ Run | Yrd Mat Min Mat Used RIF Installer . | . . . . Robots Hacked . | . . . . Non-combat . | . . . . Combat . | . . . . Robot Hacks Applied . | . . . . Relay Couplers Released . | . . . . Fabnet Peak Effective % . | . . . . Robots Rewired . | . . . . Allies Hacked . | . . . . Hacks Repelled . | . . . . Allies | -11 -10 -10 -9 -------- Run | Yrd Mat Min Mat Total Allies . | . . . . Largest Group . | . . . . Highest-Rated Group . | . . . . Highest-Rated Ally . | . . . . Total Orders . | . . . . Ally Attacks . | . . . . Total Damage . | . . . . Kills . | . . . . Allies Corrupted . | . . . . Allies Melted . | . . . . Intel | -11 -10 -10 -9 ------- Run | Yrd Mat Min Mat Robot Analysis Total . | . . . . Derelict Logs Recovered . | . . . . Drone Launches . | . . . . Drone Recoveries . | . . . . Exploration | -11 -10 -10 -9 ------------- Run | Yrd Mat Min Mat Turns Passed 605 | 98 198 158 151 Spaces Moved 349 | 51 99 124 75 Core 35 | 17 3 . 15 Treads 88 | 34 54 . . Legs 226 | . 42 124 60 Wheels . | . . . . Hover . | . . . . Flight . | . . . . Fastest Speed 50 | 50 120 120 120 Average Speed 134 | 136 147 120 141 Slowest Speed 300 | 160 300 190 200 Overloaded Moves . | . . . . Propulsion Burnouts . | . . . . Robots Hopped . | . . . . Cave-ins Triggered . | . . . . Exploration Rate (%) 20 | 4 22 43 13 Regions Visited 3 Branch Regions 1 Pre-discovered Areas . | . . . . Known Exits Taken . | . . . . Unknown Exits Taken 3 | 1 1 1 . Scrap Searched . | . . . . Spaces Dug . | . . . . Terrain Destroyed . | . . . . Melee . | . . . . Projectile . | . . . . AOE . | . . . . Terrain Rammed . | . . . . Walls Destroyed . | . . . . Machines Disabled . | . . . . Actions | -11 -10 -10 -9 --------- Run | Yrd Mat Min Mat Total 422 | 68 130 127 97 Wait . | . . . . Move 346 | 50 98 123 75 Hop . | . . . . Pick Up 16 | 7 7 1 1 Fast Attach . | . . . . Attach 14 | 5 5 . 4 Detach . | . . . . Swap 1 | . 1 . . Drop 4 | . 4 . . Fire 27 | 6 13 3 5 Melee 12 | . . . 12 Ram . | . . . . Kick 2 | . 2 . . Crush . | . . . . Escape Stasis . | . . . . Rewire . | . . . . Trap . | . . . . Miscellaneous . | . . . . Route ------- -11/Scrapyard -10/Materials -10/Mines -9/Materials History --------- Turn | Location | Event 15 | -11/Scrapyard | Discovered new exit (range 16) 99 | -11/Scrapyard | Entered Materials 285 | -10/Materials | Discovered new exit (range 8) 297 | -10/Materials | Entered Mines 304 | -10/Mines | Build established: Mutant 379 | -10/Mines | Discovered new exit (range 7) 428 | -10/Mines | Assembled infested the area 438 | -10/Mines | Core integrity fell below 50% 455 | -10/Mines | Entered Materials 455 | -9/Materials | Evolved 2 slots: Propulsion x2 486 | -9/Materials | Lost 4 parts (1p1n1u1w) 555 | -9/Materials | Core integrity fell below 50% 594 | -9/Materials | Lost 4 parts (3n1w) 601 | -9/Materials | Core integrity fell below 20% 606 | -9/Materials | Destroyed by Y-45 Defender with Beam Rifle Last Messages --------------- 00540_ A-02 Transporter system terminally corrupted. 00540_ Weight Redist. System fried. 00542_ Acquired 30 matter. 00544_ Aluminum Leg destroyed. 00550_ G-34 Mercenary suffers critical hit (Smash). 00550_ Destroyed Sml. Laser. 00550_ G-34 Mercenary system corrupted by crushing effect. 00550_ G-34 Mercenary knocked back. 00550_ U-05 Engineer destroyed. 00550_ K-01 Serf collects debris. 00563_ Aluminum Leg destroyed. 00564_ Critical hit (Burn: +37). 00569_ K-01 Serf collects debris. 00570_ Critical hit (Burn: +37). 00594_ G-34 Mercenary destroyed. 00599_ Critical hit (Burn: +37). 00599_ Flail destroyed. Map ----- +----------------------------------------------------+ | ???????????????????????????????? | | ???????????????????????????????? | | ???????????????????????????????? | | ???????????????????????????????? | | ???????????????????? ?????????? | | ???????????????????? #???????? | | ???????????????????? #???????? | | ???????????????????? #???????? | | ???????????????????? #???????? | | ????????????????###? #???????? | | ???????????????#"""? #???????? | | ???#############"Y"# +???????? | | ???? T ] #???????? | | ????? #???????? | | ??????? """ ######### | | ????????# """ #?# # | | ????????# """ #?# """ # | | ????????# ]! """ #?# """ # | | ????????# ]! |[""" ### """ # | | ????????# ! [%[*% # # | | ????????# ]== ! +*"""Y # | | ????????# = #%""" = # | | ????????# ### ####### # """ # | | ????????# #?# #?????# # YY # | | ????????# #?# #?????# # gg # | | ????????# #?# #?????# # @ # | | ????????# ###/##????#+######### | | ????????# # #????? ???????? | | ????????# # #?????? ???????? | | ????????# # #?????? ???????? | | ????????# # #?????? ???????? | | ?######## # #?????? ???????? | | ?#! # # #?????? ??????? | | ?# !!! # # #??????? ??????? | | ## !!! / / #??????????????? | | ## !!%"# # #??????????????? | | / " # ######??????????????? | | ## ] # ??????????????????? | | ######### ?????????????????? | | #????#######????????????????? | | "" #???????????????????????????? | | "" #???????????????????????????? | | "" #???????????????????????????? | | #???????????????????????????? | | "" #???????????????????????????? | | "" /???????????????????????????? | | ?? #???????????????????????????? | | ?? ????????????????????????????? | | ???????????????????????????????? | | ???????????????????????????????? | +----------------------------------------------------+ Best States ------------- Heat Dissipation 28 Energy Generation 10 Energy Capacity 250 Matter Stores 300 Matter Capacity 300 Sight Range 16 Terrain Scan Range 16 Terrain Scan Density 85 Evasion (%) 55 Recoil Reduction 2 Item Schematics ----------------- None Robot Schematics ------------------ None Fabricated ------------ Nothing Alien Tech Used ----------------- None Achievements -------------- None Challenges ------------ None Game ------ Seed KineticProtonScanner Manual? 0 Play Time 00:07:34 Cumulative 24.2 hours Start 2024.07.05 @ 21:47:12 End 2024.07.05 @ 21:53:13 Sessions 1 Manual Loads 0 Difficulty Rogue Special Mode None Game No. 72 Rogue 72 Adventurer 0 Explorer 0 Win Type - Total 0 Types 0/0/0/0/0/0/0/0/0 Lore% 16 Gallery% 31 Achievement% 23 Wizard Run 0 Options --------- Layout 1 ASCII 0 Keyboard 0 Movement Mouse Keybinds 0 Fullscreen 1 Font 48/Smallcaps Map View 25x17 Zoom Use 100% Tactical HUD 1 Map Filters NONE Filters NONE Steam 1 RUN: 807ce0e3-2461-4caf-ae8e-e4757254f3b7